fUSD/lending_fUSD_20260427
["ID","MTS","AMOUNT","RATE_DAILY","PERIOD"]
[421240861,1777287060604,-845.1,0.0003315,120]
[421240862,1777287060614,-1487.38,0.0003315,120]
[421240863,1777287060624,-500.0,0.0003315,120]
[421240864,1777287060635,-500.0,0.0003315,120]
[421240865,1777287060648,-321.85582249,0.0003315,30]
[421240866,1777287060659,-500.0,0.0003315,120]
[421240867,1777287060669,-348.73258473,0.0003315,30]
[421240868,1777287060679,-500.0,0.0003315,120]
[421240869,1777287060689,-500.0,0.0003315,120]
[421240870,1777287060700,-500.0,0.0003315,120]
[421240871,1777287060710,-898.94,0.0003315,120]
[421240872,1777287060720,-500.0,0.0003315,120]
[421240873,1777287060731,-500.0,0.0003315,120]
[421240874,1777287060741,-500.0,0.0003315,120]
[421240875,1777287060751,-500.0,0.0003315,120]
[421240876,1777287060761,-500.62,0.0003315,120]
[421240877,1777287060771,-2636.09,0.0003315,120]
[421240878,1777287060781,-500.0,0.0003315,120]
[421240879,1777287060792,-1789.45,0.0003315,120]
[421240880,1777287060802,-500.0,0.0003315,120]
[421240881,1777287060812,-1085.3,0.0003315,120]
[421240882,1777287060821,-892.08,0.0003315,120]
[421240883,1777287060831,-500.0,0.0003315,120]
[421240884,1777287060842,-631.37,0.0003315,120]
[421240885,1777287060852,-581.62,0.0003315,120]
[421240886,1777287060862,-808.43,0.0003315,120]
[421240887,1777287060873,-585.39987942,0.0003315,120]
[421240888,1777287060883,-741.62,0.0003315,120]
[421240889,1777287060894,-500.0,0.0003315,120]
[421240890,1777287060904,-500.0,0.0003315,120]
[421240891,1777287060914,-500.0,0.0003315,120]
[421240892,1777287060926,-213.09434976,0.0003315,120]
[421240893,1777287060937,-500.0,0.0003315,120]
[421240894,1777287060948,-762.27,0.0003315,120]
[421240895,1777287060959,-1157.96,0.0003315,120]
[421240896,1777287060969,-633.93,0.0003315,120]
[421240897,1777287060979,-874.69,0.0003315,120]
[421240898,1777287060989,-500.0,0.0003315,120]
[421240899,1777287060999,-900.98,0.0003315,120]
[421240900,1777287061009,-500.0,0.0003315,120]
[421240901,1777287061020,-10204.73,0.0003315,120]
[421240902,1777287061031,-500.0,0.0003315,120]
[421240903,1777287061041,-1526.17,0.0003315,120]
[421240904,1777287061052,-500.0,0.0003315,120]
[421240905,1777287061062,-500.0,0.0003315,120]
[421240906,1777287061073,-891.6,0.0003315,120]
[421240907,1777287061083,-500.0,0.0003315,120]
[421240908,1777287061094,-1367.53,0.0003315,120]
[421240909,1777287061104,-500.0,0.0003315,120]
[421240910,1777287061115,-683.25,0.0003315,120]
[421240911,1777287061125,-737.72,0.0003315,120]
[421240912,1777287062059,-1508.4,0.0003315,120]
[421240913,1777287062162,-500.0,0.0003315,120]
[421240914,1777287062182,-500.0,0.0003315,120]
[421240915,1777287062215,-10627.51,0.0003315,11]
[421240916,1777287062242,-992.31,0.0003315,120]
[421240917,1777287062251,-500.0,0.0003315,120]
[421240918,1777287062261,-500.0,0.0003315,120]
[421240919,1777287062271,-944.61,0.0003315,120]
[421240920,1777287062281,-1952.39,0.0003315,120]
[421240921,1777287062290,-500.0,0.0003315,120]
[421240922,1777287062301,-644.32,0.0003315,120]
[421240923,1777287062310,-938.15,0.0003315,120]
[421240924,1777287062319,-500.0,0.0003315,120]
[421240925,1777287062329,-500.0,0.0003315,120]
[421240926,1777287062338,-500.0,0.0003315,120]
[421240927,1777287062347,-855.86,0.0003315,120]
[421240928,1777287062357,-500.0,0.0003315,120]
[421240929,1777287062366,-500.0,0.0003315,120]
[421240930,1777287062375,-500.0,0.0003315,120]
[421240931,1777287062384,-500.0,0.0003315,120]
[421240932,1777287062393,-500.0,0.0003315,120]
[421240933,1777287062403,-976.87,0.0003315,120]
[421240934,1777287062412,-500.0,0.0003315,120]
[421240935,1777287062420,-500.0,0.0003315,120]
[421240936,1777287062430,-505.03,0.0003315,120]
[421240937,1777287062439,-500.0,0.0003315,120]
[421240938,1777287062448,-500.0,0.0003315,120]
[421240939,1777287062458,-500.0,0.0003315,120]
[421240940,1777287062467,-889.14,0.0003315,120]
[421240941,1777287062476,-500.0,0.0003315,120]
[421240942,1777287062486,-957.71,0.0003315,120]
[421240943,1777287062495,-816.73,0.0003315,120]
[421240944,1777287062504,-624.72,0.0003315,120]
[421240945,1777287062513,-9821.09,0.0003315,14]
[421240946,1777287062522,-523.03,0.0003315,120]
[421240947,1777287062531,-2650.84,0.0003315,2]
[421240948,1777287062541,-500.0,0.0003315,120]
[421240949,1777287062550,-822.98,0.0003315,120]
[421240950,1777287062560,-630.48895133,0.0003315,120]
[421240951,1777287062569,-512.12061637,0.0003315,120]
[421240952,1777287062578,-729.37,0.0003315,120]
[421240953,1777287062587,-1000.0,0.0003315,120]
[421240954,1777287062596,-587.63,0.0003315,120]
[421240955,1777287062605,-500.0,0.0003315,120]
[421240956,1777287062615,-500.0,0.0003315,120]
[421240957,1777287062624,-1044.79,0.0003315,120]
[421240958,1777287062633,-2033.75,0.0003315,120]
[421240959,1777287062642,-500.0,0.0003315,120]
[421240960,1777287062651,-2315.34,0.0003315,120]
[421240961,1777287062661,-500.0,0.0003315,120]
[421240962,1777287062670,-651.78,0.0003315,120]
[421240963,1777287062679,-872.94,0.0003315,120]
[421240964,1777287062688,-1144.22,0.0003315,120]
[421240965,1777287062697,-500.0,0.0003315,120]
[421240966,1777287062706,-500.0,0.0003315,120]
[421240967,1777287062715,-500.0,0.0003315,120]
[421240968,1777287062724,-500.0,0.0003315,120]
[421240969,1777287062734,-500.0,0.0003315,120]
[421240970,1777287062743,-500.0,0.0003315,120]
[421240971,1777287062752,-905.69,0.0003315,120]
[421240972,1777287062762,-500.0,0.0003315,120]
[421240973,1777287062771,-659.77,0.0003315,120]
[421240974,1777287062780,-500.0,0.0003315,120]
[421240975,1777287062790,-500.0,0.0003315,120]
[421240976,1777287062799,-572.93,0.0003315,120]
[421240977,1777287062808,-500.0,0.0003315,120]
[421240978,1777287062817,-478.16,0.0003315,120]
[421240979,1777287062826,-526.89,0.0003315,120]
[421240980,1777287062835,-500.0,0.0003315,30]
[421240981,1777287062845,-2198.73,0.0003315,31]
[421240982,1777287062854,-936.24,0.0003315,120]
[421240983,1777287062864,-7236.62,0.0003315,120]
[421240984,1777287062873,-601.2,0.0003315,120]
[421240985,1777287062882,-1500.0,0.0003315,120]
[421240986,1777287062892,-1282.75,0.0003315,120]
[421240987,1777287062901,-500.0,0.0003315,120]
[421240988,1777287062911,-500.0,0.0003315,120]
[421240989,1777287062920,-500.0,0.0003315,120]
[421240990,1777287062929,-2200.28506366,0.0003315,10]
[421240991,1777287062939,-221.0,0.00033178,30]
[421240992,1777287062948,-156.0,0.00033178,30]
[421240993,1777287062957,-313.0,0.00033178,30]
[421240994,1777287062966,-401.0,0.00033178,30]
[421240995,1777287062975,-200.0,0.00033206,2]
[421240996,1777287062985,-451.0,0.00033247,30]
[421240997,1777287062994,-159.0,0.00033247,30]
[421240998,1777287063003,-153.0,0.00033247,30]
[421240999,1777287063012,-1182.0,0.00033247,30]
[421241000,1777287063021,-159.0,0.00033248,30]
[421241001,1777287063030,-158.0,0.00033248,30]
[421241002,1777287063040,-521.50674032,0.000333,120]
[421241003,1777287063049,-348.0053347,0.00033324,2]
[421241004,1777287063059,-1025.61642854,0.00033324,2]
[421241005,1777287063068,-217.32462604,0.00033324,6]
[421241006,1777287063078,-6009.96,0.000334,7]
[421241007,1777287063087,-274.581385,0.000334,7]
[421241008,1777287063096,-274.581385,0.000334,7]
[421241009,1777287063106,-274.581385,0.000334,7]
[421241010,1777287063115,-274.581385,0.000334,7]
[421241011,1777287063124,-40919.8,0.00033424,120]
[421241012,1777287063133,-5510.884336,0.00033424,120]
[421241013,1777287063142,-406.931409,0.00033424,120]
[421241014,1777287063152,-325.762595,0.00033424,120]
[421241015,1777287063161,-342.964341,0.00033424,120]
[421241016,1777287063170,-2698.281126,0.00033424,120]
[421241017,1777287063180,-500.0,0.00033424,120]
[421241018,1777287063190,-335.44923736,0.00033424,120]
[421241019,1777287063199,-500.0,0.00033424,120]
[421241020,1777287063208,-500.0,0.00033424,30]
[421241021,1777287063217,-500.0,0.00033424,90]
[421241022,1777287063226,-500.0,0.00033424,120]
[421241023,1777287063235,-500.0,0.00033424,120]
[421241024,1777287063244,-500.0,0.00033424,120]
[421241025,1777287063254,-500.0,0.00033424,120]
[421241026,1777287063263,-500.0,0.00033424,120]
[421241027,1777287063272,-500.0,0.00033424,120]
[421241028,1777287063282,-500.0,0.00033424,120]
[421241029,1777287063291,-500.0,0.00033424,30]
[421241030,1777287063301,-500.0,0.00033424,120]
[421241031,1777287063310,-500.0,0.00033424,120]
[421241032,1777287063319,-500.0,0.00033424,120]
[421241033,1777287063329,-500.0,0.00033424,120]
[421241034,1777287063338,-500.0,0.00033424,120]
[421241035,1777287063347,-500.0,0.00033424,120]
[421241036,1777287063357,-500.0,0.00033424,120]
[421241037,1777287063366,-863.36,0.00033424,120]
[421241038,1777287063375,-500.0,0.00033424,2]
[421241039,1777287063384,-500.0,0.00033424,120]
[421241040,1777287063393,-599.06,0.00033424,120]
[421241041,1777287063403,-500.0,0.00033424,120]
[421241042,1777287063411,-500.0,0.00033424,120]
[421241043,1777287063420,-640.83,0.00033424,120]
[421241044,1777287063430,-500.0,0.00033424,120]
[421241045,1777287063439,-244.03360173,0.00033424,120]
[421241046,1777287063448,-500.0,0.00033424,120]
[421241047,1777287063457,-500.0,0.00033424,120]
[421241048,1777287063466,-500.0,0.00033424,120]
[421241049,1777287063476,-1211.95,0.00033424,120]
[421241050,1777287063485,-565.53,0.00033424,120]
[421241051,1777287063494,-500.0,0.00033424,120]
[421241052,1777287063503,-553.4,0.00033424,120]
[421241053,1777287063513,-500.0,0.00033424,120]
[421241054,1777287063522,-715.07,0.00033424,120]
[421241055,1777287063531,-500.0,0.00033424,120]
[421241056,1777287063540,-500.0,0.00033424,120]
[421241057,1777287063549,-938.55,0.00033424,120]
[421241058,1777287063558,-1090.36,0.00033424,120]
[421241059,1777287063568,-634.95,0.00033424,120]
[421241060,1777287063577,-500.0,0.00033424,120]
[421241061,1777287063586,-379.96762412,0.00033424,120]
[421241062,1777287063595,-500.0,0.00033424,120]
[421241063,1777287063604,-500.0,0.00033424,120]
[421241064,1777287063614,-528.14,0.00033424,120]
[421241065,1777287063623,-500.0,0.00033424,120]
[421241066,1777287063632,-500.0,0.00033424,120]
[421241067,1777287063641,-500.0,0.00033424,120]
[421241068,1777287063651,-1072.38,0.00033424,120]
[421241069,1777287063660,-1314.31,0.00033424,120]
[421241070,1777287063670,-703.47,0.00033424,120]
[421241071,1777287063679,-596.66,0.00033424,120]
[421241072,1777287063688,-500.0,0.00033424,120]
[421241073,1777287063698,-500.0,0.00033424,120]
[421241074,1777287063707,-500.0,0.00033424,120]
[421241075,1777287063716,-500.0,0.00033424,120]
[421241076,1777287063725,-500.0,0.00033424,120]
[421241077,1777287063734,-500.0,0.00033424,120]
[421241078,1777287063743,-173.71501176,0.00033424,120]
[421241079,1777287063753,-500.0,0.00033424,120]
[421241080,1777287063763,-516.81,0.00033424,120]
[421241081,1777287063772,-500.0,0.00033424,30]
[421241082,1777287063781,-2357.31,0.00033424,120]
[421241083,1777287063791,-722.01,0.00033424,120]
[421241084,1777287063800,-500.0,0.00033424,120]
[421241085,1777287063809,-500.0,0.00033424,120]
[421241086,1777287063818,-500.0,0.00033424,120]
[421241087,1777287063827,-500.0,0.00033424,120]
[421241088,1777287063837,-500.0,0.00033424,120]
[421241089,1777287063846,-500.0,0.00033424,120]
[421241090,1777287063855,-500.0,0.00033424,120]
[421241091,1777287063864,-1649.9,0.00033424,30]
[421241092,1777287063874,-527.75,0.00033424,120]
[421241093,1777287063883,-406.04906822,0.00033424,120]
[421241094,1777287063892,-500.0,0.00033424,120]
[421241095,1777287063901,-500.0,0.00033424,120]
[421241096,1777287063911,-500.0,0.00033424,120]
[421241097,1777287063920,-663.98,0.00033424,120]
[421241098,1777287063930,-752.81,0.00033424,120]
[421241099,1777287063939,-696.22,0.00033424,120]
[421241100,1777287063948,-500.0,0.00033424,120]
[421241101,1777287063958,-500.0,0.00033424,120]
[421241102,1777287063967,-1446.95,0.00033424,120]
[421241103,1777287063976,-964.96,0.00033424,120]
[421241104,1777287063986,-500.0,0.00033424,120]
[421241105,1777287063995,-500.0,0.00033424,120]
[421241106,1777287064004,-500.0,0.00033424,120]
[421241107,1777287064014,-500.0,0.00033424,120]
[421241108,1777287064023,-529.41,0.00033424,120]
[421241109,1777287064032,-500.0,0.00033424,120]
[421241110,1777287064041,-500.0,0.00033424,120]
[421241111,1777287064051,-500.0,0.00033424,120]
[421241112,1777287064060,-500.0,0.00033424,120]
[421241113,1777287064070,-500.0,0.00033424,120]
[421241114,1777287064079,-500.0,0.00033424,120]
[421241115,1777287064088,-1077.32,0.00033424,120]
[421241116,1777287064097,-1000.0,0.00033424,120]
[421241117,1777287064107,-765.4,0.00033424,120]
[421241118,1777287064116,-949.83,0.00033424,120]
[421241119,1777287064126,-599.76,0.00033424,120]
[421241120,1777287064135,-500.0,0.00033424,120]
[421241121,1777287064145,-562.61129425,0.00033424,120]
[421241122,1777287064155,-500.0,0.00033424,120]
[421241123,1777287064163,-500.0,0.00033424,120]
[421241124,1777287064173,-500.0,0.00033424,120]
[421241125,1777287064182,-500.0,0.00033424,120]
[421241126,1777287064191,-452.95,0.00033424,120]
[421241127,1777287064201,-500.0,0.00033424,120]
[421241128,1777287064211,-500.0,0.00033424,120]
[421241129,1777287064220,-500.0,0.00033424,120]
[421241130,1777287064230,-812.99,0.00033424,120]
[421241131,1777287064239,-1319.91,0.00033424,120]
[421241132,1777287064248,-500.0,0.00033424,120]
[421241133,1777287064258,-559.35,0.00033424,120]
[421241134,1777287064267,-1706.39,0.00033424,120]
[421241135,1777287064276,-500.0,0.00033424,120]
[421241136,1777287064286,-500.0,0.00033424,120]
[421241137,1777287064295,-500.0,0.00033424,120]
[421241138,1777287064304,-500.0,0.00033424,120]
[421241139,1777287064314,-500.0,0.00033424,120]
[421241140,1777287064323,-500.0,0.00033424,120]
[421241141,1777287064332,-500.0,0.00033424,120]
[421241142,1777287064342,-668.63,0.00033424,120]
[421241143,1777287064351,-326.20648903,0.00033424,120]
[421241144,1777287064360,-500.0,0.00033424,120]
[421241145,1777287064370,-1799.8,0.00033424,30]
[421241146,1777287064379,-2310.82,0.00033424,120]
[421241147,1777287064388,-500.0,0.00033424,120]
[421241148,1777287064397,-951.83,0.00033424,120]
[421241149,1777287064479,-500.0,0.00033424,120]
[421241150,1777287064488,-500.0,0.00033424,120]
[421241151,1777287064497,-500.0,0.00033424,120]
[421241152,1777287064506,-500.0,0.00033424,120]
[421241153,1777287064515,-500.0,0.00033424,120]
[421241154,1777287064524,-500.0,0.00033424,120]
[421241155,1777287064533,-500.0,0.00033424,120]
[421241156,1777287064542,-500.0,0.00033424,120]
[421241157,1777287064551,-691.55,0.00033424,120]
[421241158,1777287064560,-500.0,0.00033424,120]
[421241159,1777287064570,-822.42,0.00033424,120]
[421241160,1777287064579,-500.0,0.00033424,120]
[421241161,1777287064588,-620.03434236,0.00033424,120]
[421241162,1777287064597,-527.71651834,0.00033424,120]
[421241163,1777287064607,-500.0,0.00033424,120]
[421241164,1777287064616,-690.22,0.00033424,120]
[421241165,1777287064625,-1041.51,0.00033424,120]
[421241166,1777287064634,-372.06074722,0.00033424,120]
[421241167,1777287064643,-321.70377199,0.00033424,120]
[421241168,1777287064652,-817.53,0.00033424,120]
[421241169,1777287064662,-500.0,0.00033424,120]
[421241170,1777287064671,-500.0,0.00033424,120]
[421241171,1777287064680,-500.0,0.00033424,120]
[421241172,1777287064689,-812.8,0.00033424,120]
[421241173,1777287064698,-500.0,0.00033424,120]
[421241174,1777287064707,-500.0,0.00033424,120]
[421241175,1777287064716,-500.0,0.00033424,120]
[421241176,1777287064724,-894.99,0.00033424,120]
[421241177,1777287064734,-1018.47,0.00033424,120]
[421241178,1777287064743,-500.0,0.00033424,120]
[421241179,1777287064752,-1560.45,0.00033424,10]
[421241180,1777287064762,-500.0,0.00033424,120]
[421241181,1777287064772,-654.65,0.00033424,120]
[421241182,1777287064781,-500.0,0.00033424,120]
[421241183,1777287064790,-272.26473646,0.00033424,120]
[421241184,1777287064800,-500.0,0.00033424,120]
[421241185,1777287064808,-500.0,0.00033424,120]
[421241186,1777287064818,-770.15,0.00033424,120]
[421241187,1777287064828,-500.0,0.00033424,120]
[421241188,1777287064836,-747.23,0.00033424,120]
[421241189,1777287064846,-592.21,0.00033424,120]
[421241190,1777287064855,-1047.65,0.00033424,120]
[421241191,1777287064865,-500.0,0.00033424,120]
[421241192,1777287064875,-500.0,0.00033424,120]
[421241193,1777287064884,-500.0,0.00033424,120]
[421241194,1777287064894,-520.68079594,0.00033424,120]
[421241195,1777287064903,-500.0,0.00033424,120]
[421241196,1777287064912,-500.0,0.00033424,120]
[421241197,1777287064922,-548.93,0.00033424,120]
[421241198,1777287064931,-500.0,0.00033424,120]
[421241199,1777287064940,-500.0,0.00033424,120]
[421241200,1777287064949,-500.0,0.00033424,120]
[421241201,1777287064959,-500.0,0.00033424,120]
[421241202,1777287064969,-500.0,0.00033424,120]
[421241203,1777287064978,-1885.25,0.00033424,120]
[421241204,1777287064988,-500.0,0.00033424,120]
[421241205,1777287064997,-1242.85,0.00033424,120]
[421241206,1777287065007,-632.88,0.00033424,120]
[421241207,1777287065017,-810.82,0.00033424,120]
[421241208,1777287065026,-696.25,0.00033424,120]
[421241209,1777287065035,-500.0,0.00033424,120]
[421241210,1777287065044,-500.0,0.00033424,120]
[421241211,1777287065053,-500.0,0.00033424,120]
[421241212,1777287065062,-500.0,0.00033424,120]
[421241213,1777287065072,-500.0,0.00033424,120]
[421241214,1777287065082,-500.0,0.00033424,120]
[421241215,1777287065091,-500.0,0.00033424,120]
[421241216,1777287065100,-500.0,0.00033424,120]
[421241217,1777287065110,-1579.01,0.00033424,120]
[421241218,1777287065119,-500.0,0.00033424,120]
[421241219,1777287065128,-500.0,0.00033424,120]
[421241220,1777287065138,-601.37,0.00033424,120]
[421241221,1777287065147,-1456.44,0.00033424,120]
[421241222,1777287065156,-595.98,0.00033424,120]
[421241223,1777287065166,-1572.92,0.00033424,120]
[421241224,1777287065175,-500.0,0.00033424,120]
[421241225,1777287065184,-500.0,0.00033424,120]
[421241226,1777287065194,-1223.21,0.00033424,120]
[421241227,1777287065203,-500.0,0.00033424,120]
[421241228,1777287065212,-500.0,0.00033424,120]
[421241229,1777287065221,-987.31,0.00033424,120]
[421241230,1777287065230,-500.0,0.00033424,120]
[421241231,1777287065239,-500.0,0.00033424,120]
[421241232,1777287065248,-685.94,0.00033424,120]
[421241233,1777287065257,-996.26,0.00033424,120]
[421241234,1777287065267,-500.0,0.00033424,120]
[421241235,1777287065276,-500.0,0.00033424,120]
[421241236,1777287065286,-977.11,0.00033424,120]
[421241237,1777287065295,-1114.4,0.00033424,120]
[421241238,1777287065304,-922.87,0.00033424,120]
[421241239,1777287065313,-500.0,0.00033424,120]
[421241240,1777287065323,-694.64,0.00033424,120]
[421241241,1777287065332,-876.6,0.00033424,120]
[421241242,1777287065342,-2804.65,0.00033424,120]
[421241243,1777287065351,-1292.17,0.00033424,120]
[421241244,1777287065361,-500.0,0.00033424,120]
[421241245,1777287065369,-359.668231,0.00033424,120]
[421241246,1777287065380,-500.0,0.00033424,120]
[421241247,1777287065389,-500.0,0.00033424,120]
[421241248,1777287065399,-831.75,0.00033424,14]
[421241249,1777287065408,-500.0,0.00033424,120]
[421241250,1777287065417,-500.0,0.00033424,14]
[421241251,1777287065426,-500.0,0.00033424,30]
[421241252,1777287065435,-695.08,0.00033424,120]
[421241253,1777287065444,-975.03,0.00033424,120]
[421241254,1777287065453,-500.0,0.00033424,120]
[421241255,1777287065462,-500.0,0.00033424,120]
[421241256,1777287065472,-500.0,0.00033424,120]
[421241257,1777287065481,-667.25,0.00033424,120]
[421241258,1777287065490,-500.0,0.00033424,120]
[421241259,1777287065499,-500.0,0.00033424,120]
[421241260,1777287065509,-514.22,0.00033424,120]
[421241261,1777287065518,-500.0,0.00033424,120]
[421241262,1777287065527,-500.0,0.00033424,120]
[421241263,1777287065536,-500.0,0.00033424,120]
[421241264,1777287065545,-809.84,0.00033424,120]
[421241265,1777287065555,-500.0,0.00033424,120]
[421241266,1777287065563,-808.81,0.00033424,120]
[421241267,1777287065573,-656.37,0.00033424,120]
[421241268,1777287065583,-924.49,0.00033424,120]
[421241269,1777287065592,-1754.83,0.00033424,120]
[421241270,1777287065601,-816.58,0.00033424,120]
[421241271,1777287065610,-1699.99,0.00033424,120]
[421241272,1777287065619,-963.43,0.00033424,120]
[421241273,1777287065628,-988.21,0.00033424,120]
[421241274,1777287065637,-500.0,0.00033424,120]
[421241275,1777287065646,-803.53,0.00033424,120]
[421241276,1777287065656,-983.75,0.00033424,120]
[421241277,1777287065665,-806.48,0.00033424,120]
[421241278,1777287065674,-1721.56,0.00033424,120]
[421241279,1777287065683,-500.0,0.00033424,120]
[421241280,1777287065692,-899.89,0.00033424,120]
[421241281,1777287065701,-1666.52,0.00033424,120]
[421241282,1777287065710,-500.0,0.00033424,120]
[421241283,1777287065719,-598.17,0.00033424,120]
[421241284,1777287065728,-903.54,0.00033424,120]
[421241285,1777287065737,-640.16,0.00033424,120]
[421241286,1777287065747,-2805.42,0.00033424,120]
[421241287,1777287065757,-500.0,0.00033424,120]
[421241288,1777287065767,-572.74681865,0.00033424,120]
[421241289,1777287065777,-1658.74,0.00033424,120]
[421241290,1777287065787,-500.0,0.00033424,120]
[421241291,1777287065797,-500.0,0.00033424,120]
[421241292,1777287065807,-507.17,0.00033424,120]
[421241293,1777287065817,-500.0,0.00033424,120]
[421241294,1777287065826,-760.12,0.00033424,120]
[421241295,1777287065836,-1131.48,0.00033424,120]
[421241296,1777287065846,-500.0,0.00033424,120]
[421241297,1777287065855,-500.0,0.00033424,120]
[421241298,1777287065865,-1275.35,0.00033424,120]
[421241299,1777287065875,-1746.47,0.00033424,120]
[421241300,1777287065884,-1186.63,0.00033424,120]
[421241301,1777287065893,-500.0,0.00033424,120]
[421241302,1777287065902,-726.02,0.00033424,120]
[421241303,1777287065911,-508.25272191,0.00033424,120]
[421241304,1777287065920,-857.8,0.00033424,120]
[421241305,1777287065930,-500.0,0.00033424,120]
[421241306,1777287065938,-942.29,0.00033424,120]
[421241307,1777287065948,-500.0,0.00033424,120]
[421241308,1777287065958,-500.0,0.00033424,90]
[421241309,1777287065967,-888.77,0.00033424,120]
[421241310,1777287065976,-615.52,0.00033424,120]
[421241311,1777287065986,-500.0,0.00033424,120]
[421241312,1777287065995,-691.21,0.00033424,120]
[421241313,1777287066005,-1549.89,0.00033424,120]
[421241314,1777287066014,-500.0,0.00033424,120]
[421241315,1777287066023,-500.0,0.00033424,120]
[421241316,1777287066032,-597.1,0.00033424,120]
[421241317,1777287066042,-500.0,0.00033424,120]
[421241318,1777287066051,-500.0,0.00033424,120]
[421241319,1777287066061,-516.45,0.00033424,120]
[421241320,1777287066070,-500.0,0.00033424,120]
[421241321,1777287066079,-646.3,0.00033424,120]
[421241322,1777287066089,-996.25,0.00033424,120]
[421241323,1777287066098,-729.86,0.00033424,120]
[421241324,1777287066107,-500.0,0.00033424,120]
[421241325,1777287066116,-500.0,0.00033424,120]
[421241326,1777287066125,-862.2,0.00033424,120]
[421241327,1777287066135,-902.68,0.00033424,120]
[421241328,1777287066144,-500.0,0.00033424,120]
[421241329,1777287066154,-932.95,0.00033424,120]
[421241330,1777287066163,-501.5,0.00033424,120]
[421241331,1777287066172,-932.07,0.00033424,120]
[421241332,1777287066181,-500.0,0.00033424,120]
[421241333,1777287066191,-946.6,0.00033424,120]
[421241334,1777287066201,-638.61,0.00033424,120]
[421241335,1777287066210,-500.0,0.00033424,120]
[421241336,1777287066220,-1014.18,0.00033424,120]
[421241337,1777287066229,-500.0,0.00033424,120]
[421241338,1777287066239,-714.89,0.00033424,120]
[421241339,1777287066248,-1988.17,0.00033424,120]
[421241340,1777287066257,-500.0,0.00033424,120]
[421241341,1777287066267,-500.0,0.00033424,120]
[421241342,1777287066276,-500.0,0.00033424,120]
[421241343,1777287066286,-563.81,0.00033424,120]
[421241344,1777287066295,-500.0,0.00033424,120]
[421241345,1777287066304,-406.98903634,0.00033424,120]
[421241346,1777287066313,-500.0,0.00033424,120]
[421241347,1777287066322,-500.0,0.00033424,120]
[421241348,1777287066331,-500.0,0.00033424,7]
[421241349,1777287066341,-500.0,0.00033424,120]
[421241350,1777287066350,-885.91,0.00033424,120]
[421241351,1777287066359,-1640.34,0.00033424,120]
[421241352,1777287066369,-500.0,0.00033424,120]
[421241353,1777287066378,-891.92,0.00033424,120]
[421241354,1777287066387,-669.56,0.00033424,120]
[421241355,1777287066396,-500.0,0.00033424,120]
[421241356,1777287066406,-1390.78,0.00033424,120]
[421241357,1777287066415,-500.0,0.00033424,60]
[421241358,1777287066424,-500.0,0.00033424,120]
[421241359,1777287066433,-500.0,0.00033424,120]
[421241360,1777287066442,-500.0,0.00033424,120]